Cogmind - Beta 15 @@@ ROGUE MODE // 2025.08.24 @ 15:01:43 Player: CanadianCogs Result: Destroyed by C-40 Crusher with Compactor Performance ------------- Evolutions (4) 2000 Regions Visited (10) 2000 Robots Destroyed (57) 285 Value Destroyed (1384) 1384 Prototype IDs (12) 240 Alien Tech Used (0) 0 Bonus (349) 349 TOTAL SCORE: 6258 Bonus ------- Follower Combat Kills 49 Met Data Miner 300 Cogmind --------- Core Integrity 0/850 Matter 300/300 Energy 100/100 System Corruption 4% Temperature Cool (0) Movement Core (50) Location -6/Waste Parts ------- > --- POWER (1) -------- (None) > --- PROPULSION (4) --- (None) > --- UTILITY (6) ------ (None) > --- WEAPON (4) ------- (None) > --- INVENTORY (5) ---- Improved Trap Scanner Peak State ------------ > --- POWER ------------ Light Ion Engine > --- PROPULSION ------- Wheel Wheel Armored Huge Wheel > --- UTILITY ---------- Melee Analysis Suite Advanced Melee Analysis Suite Armor Integrity Analyzer Improved Reaction Control System Hardened Medium Armor Plating EM Shield > --- WEAPON ----------- Great Axe Heavy Pick Heavy Pick > --- INVENTORY -------- Improved Trap Scanner [Rating: 50] Favorites ----------- Power Light Ion Engine Engine Light Ion Engine Power Core Light Nuclear Core Propulsion Compact Wheel Treads Light Treads Wheel Compact Wheel Hover Unit Backup Propulsion I Flight Unit Cesium-ion Thruster Utility Advanced Targeting Computer Device Phase Shifter Storage Huge Storage Unit Processor Advanced Targeting Computer Protection Layered Light Armor Plating Weapon Flak Gun Energy Cannon Beam Cannon Ballistic Gun Flak Gun Launcher Mini Grenade Launcher Impact Weapon Mace Slashing Weapon Great Axe Piercing Weapon Heavy Pick Build | -11 -10 -9 -9 -8 -7 -7 -7 -6 -6 -6 ------- Run | Yrd Mat Mat Sto Mat Fac Low Dat Pro Fac Was Slots Evolved 8 | . . 2 . 2 2 . . . 2 . Power . | . . . . . . . . . . . Propulsion 2 | . . . . 2 . . . . . . Utility 4 | . . 2 . . 2 . . . . . Weapon 2 | . . . . . . . . . 2 . Parts Attached 66 | 7 2 10 1 11 9 9 . 4 13 . Power 5 | 1 . . . 1 1 1 . . 1 . Engine 4 | 1 . . . 1 . 1 . . 1 . Core 1 | . . . . . 1 . . . . . Reactor . | . . . . . . . . . . . Propulsion 18 | 2 . 5 . 4 1 3 . . 3 . Treads 1 | . . . . . . 1 . . . . Leg . | . . . . . . . . . . . Wheel 9 | 2 . 1 . . 1 2 . . 3 . Hover . | . . . . . . . . . . . Flight 8 | . . 4 . 4 . . . . . . Utility 25 | 2 . 4 . 2 5 4 . 4 4 . Device 11 | 1 . 3 . 1 1 1 . 2 2 . Storage 2 | 1 . . . . 1 . . . . . Processor 7 | . . 1 . . 1 2 . 2 1 . Hackware . | . . . . . . . . . . . Protection 5 | . . . . 1 2 1 . . 1 . Artifact . | . . . . . . . . . . . Weapon 18 | 2 2 1 1 4 2 1 . . 5 . Energy Gun . | . . . . . . . . . . . Energy Cannon 2 | . 1 . . . . . . . 1 . Ballistic Gun 9 | 2 . . . 3 2 1 . . 1 . Ballistic Cannon . | . . . . . . . . . . . Launcher 2 | . 1 . 1 . . . . . . . Special Weapon . | . . . . . . . . . . . Impact Weapon 2 | . . 1 . 1 . . . . . . Slashing Weapon 1 | . . . . . . . . . 1 . Piercing Weapon 2 | . . . . . . . . . 2 . Special Melee Weapon . | . . . . . . . . . . . Unidentified Prototypes 1 | . . . . 1 . . . . . . Parts Lost 31 | . . 4 1 4 . 8 . 6 1 7 Power 3 | . . 1 . . . 1 . 1 . . Propulsion 13 | . . 1 1 2 . 5 . 1 . 3 Utility 12 | . . 1 . 2 . 2 . 2 1 4 Weapon 3 | . . 1 . . . . . 2 . . Highest Loss Streak 7 | . . 2 1 1 . 5 . 5 1 7 To Critical Strikes . | . . . . . . . . . . . Average Backups 3 | . 2 3 5 1 2 5 7 3 2 1 Power . | . . . . . . . . . . . Propulsion . | . . 2 4 . . . . . . . Utility 2 | . . . 1 . 1 4 7 3 1 1 Weapon . | . 1 1 . . . . . . . . Tool/Special . | . . . . . . . . . . . Unused Backups 4 | . . 2 . . . 1 . 1 . . Power . | . . . . . . . . . . . Propulsion 2 | . . 2 . . . . . . . . Utility 2 | . . . . . . 1 . 1 . . Weapon . | . . . . . . . . . . . Tool/Special . | . . . . . . . . . . . Average Slot Usage (%) 68 | . 100 72 72 58 57 73 76 34 55 53 Engine 3 | . 14 1 . 1 . 5 7 . . 2 Core 1 | . . . . . 5 1 . . . . Wheel 5 | . 28 9 . . 5 2 7 . 7 11 Hover 1 | . . . . . 4 2 . . . . Flight 3 | . . 10 18 22 . . . . . . Device 10 | . 14 22 20 13 5 6 7 11 12 8 Storage 5 | . 14 5 . . 4 7 7 1 . . Processor 13 | . . 1 11 6 5 19 23 16 19 16 Protection 5 | . . . . 1 11 9 7 1 4 2 Energy Cannon 1 | . 11 7 . . . . . . 1 . Ballistic Gun 10 | . 16 6 . 2 13 15 15 1 . . Launcher 1 | . . 3 11 4 . . . . . . Impact Weapon 1 | . . 3 11 6 . . . . . . Peak Build Rating 50 | 7 7 14 14 22 29 36 33 33 50 50 Average Rating 24 | 5 6 7 12 13 23 31 33 17 39 32 On Entrance 17 | . 7 7 13 11 1 29 33 33 13 50 Naked Turns 80 | . . . . 45 18 . . . . 17 Heaviest Build 106 | 14 16 17 7 23 106 106 96 96 24 24 Greatest Support 48 | 26 26 32 10 19 16 26 10 10 48 48 Greatest Overweight (x) 32 | . . 2 . 1 6 32 9 28 . . Average Overweight (x) 2 | . . . . . 3 12 9 . . . Largest Inventory Capacity 25 | 8 8 8 5 5 25 25 25 25 5 5 Average Capacity 15 | 7 8 6 5 5 18 25 25 8 5 5 Most Carried 9 | . 4 5 5 4 5 9 7 7 4 1 Average Carried 3 | . 2 3 5 1 2 5 7 2 2 1 Final Capacity 25 | 8 8 5 5 5 25 25 25 5 5 5 Final Carried 7 | . 4 5 5 3 3 7 7 2 1 1 Class Distribution -------------------- 83% | Mutant 8% | Sprinter 4% | Scavenger-Mutant 4% | Gladiator Dominant Class ---------------- Mutant | -10/Materials Mutant | -9/Materials Sprinter | -9/Storage Mutant | -8/Materials Mutant | -7/Factory Mutant | -7/Lower Caves Mutant | -7/Data Miner Mutant | -6/Proximity Caves Mutant | -6/Factory Mutant | -6/Waste Resources | -11 -10 -9 -9 -8 -7 -7 -7 -6 -6 -6 ----------- Run | Yrd Mat Mat Sto Mat Fac Low Dat Pro Fac Was Matter Collected 1642 | 322 69 197 20 198 100 497 . 8 231 . Remotely . | . . . . . . . . . . . Salvage Created 1962 | 75 131 415 39 206 177 341 . 55 238 285 Parts 90 | 6 7 28 2 7 5 20 . . 10 5 Haulers Intercepted 1 | . . . . 1 . . . . . . Recyclers Shooed 3 | 1 . 1 1 . . . . . . . Parts Field Recycled . | . . . . . . . . . . . Retrieved Matter . | . . . . . . . . . . . Parts Self-Destructed 20 | . . . . . . 18 . 2 . . Prevented . | . . . . . . . . . . . Kills | -11 -10 -9 -9 -8 -7 -7 -7 -6 -6 -6 ------- Run | Yrd Mat Mat Sto Mat Fac Low Dat Pro Fac Was Combat Hostiles Destroyed 36 | . 5 13 3 2 . 11 . 1 . 1 Melee 1 | . . . . . . . . . . 1 Guns 18 | . 1 4 . 1 . 11 . 1 . . Cannons 10 | . 2 8 . . . . . . . . AOE 5 | . 2 . 3 . . . . . . . Classes Destroyed 15 | 2 3 . 1 4 1 3 . . . 1 Worker 4 | . . . . 1 1 . . . 2 . Builder 6 | . . . . 4 . . . . 2 . Tunneler 2 | 1 . . . 1 . . . . . . Hauler 1 | . . . . 1 . . . . . . Recycler 5 | 1 . 1 . . 2 . . . 1 . Minesweeper 1 | . . . . . . 1 . . . . Mechanic 1 | . . . . . 1 . . . . . Watcher 1 | . 1 . . . . . . . . . Swarmer 13 | . 3 7 . . . 3 . . . . Grunt 14 | . 2 6 . . . 5 . 1 . . Duelist 1 | . . . . . . 1 . . . . Sentry 4 | . . . 3 . . 1 . . . . Hunter 2 | . . . . 2 . . . . . . Programmer 1 | . . . . . . 1 . . . . Compactor 1 | . . . . . . . . . . 1 Best Kill Streak 9 | 2 3 9 3 3 2 4 . 1 4 1 Combat Bots Only 9 | . 3 9 3 1 . 4 . 1 . 1 Max Kills in Single Turn 2 | 1 2 1 2 1 1 2 . 1 1 1 Gunslinging 1 | . . . . . . 1 . . . . Exploded 2 | . 2 . 2 . . . . . . . Melee 1 | . . . . . . . . . . 1 Uniques/NPCs Destroyed . | . . . . . . . . . . . Combat | -11 -10 -9 -9 -8 -7 -7 -7 -6 -6 -6 -------- Run | Yrd Mat Mat Sto Mat Fac Low Dat Pro Fac Was Hostile Shots Fired 555 | . 20 59 23 94 78 127 . 64 63 27 Missed 187 | . 4 21 8 32 24 47 . 20 31 . Hits 368 | . 16 38 15 62 54 80 . 44 32 27 Melee 33 | . . . . 3 . 3 . . . 27 Projectile 335 | . 16 38 15 59 54 77 . 44 32 . AOE 1 | . . . . 1 . . . . . . Critical Strikes 24 | . . . 1 2 . 2 . 3 . 16 Damage Taken 5109 | . 170 389 214 912 185 962 . 794 247 1236 Core 2129 | . 26 73 114 549 3 136 . 358 11 859 Absorbed by Shields 388 | . . . . . 216 172 . . . . Regen/Repaired (Parts) 50 | . . . 27 23 . . . . . . Core Remaining (%) 54 | 100 89 . 53 . . . . 29 . . Volleys Fired 116 | 13 16 31 8 10 4 26 . 7 1 . Largest 2 | 2 2 2 1 2 2 2 . 2 2 . Hottest 105 | 40 80 80 30 46 56 56 . 56 105 . Shots Fired 216 | 26 31 58 8 20 8 53 . 10 2 . Gun 158 | 26 15 27 . 18 8 53 . 10 1 . Cannon 47 | . 15 31 . . . . . . 1 . Launcher 11 | . 1 . 8 2 . . . . . . Special . | . . . . . . . . . . . Kinetic 158 | 26 15 27 . 18 8 53 . 10 1 . Thermal 46 | . 15 31 . . . . . . . . Explosive 11 | . 1 . 8 2 . . . . . . Electromagnetic 1 | . . . . . . . . . 1 . Robot Hit Streak 27 | 4 21 13 9 16 18 11 . 27 2 . Robot Miss Streak 9 | 2 2 2 . 1 6 9 . 3 . . Penetration Max . | . . . . . . . . . . . Secondary Targets 1 | . . . . . . 1 . . . . Max Gunslinging Chain 1 | . . . . . . 1 . . . . Shots Hit Robots 202 | 16 25 37 8 29 6 49 . 10 9 13 Core Hits 147 | 3 9 20 11 6 11 63 . 14 3 7 Critical Kills 2 | . . 1 . 1 . . . . . . Critical Parts Destroyed 2 | . . . . 2 . . . . . . Critical Strikes 6 | . . 1 . 3 . . . . 1 1 Meltdown 1 | . . 1 . . . . . . . . Corrupt 1 | . . . . . . . . . 1 . Smash 3 | . . . . 3 . . . . . . Sever 1 | . . . . . . . . . . 1 Melee Attacks 40 | . . . . 18 . . . . 9 13 Impact 18 | . . . . 18 . . . . . . Slashing 18 | . . . . . . . . . 7 11 Piercing 4 | . . . . . . . . . 2 2 Sneak Attacks 13 | . . . . 7 . . . . 6 . Combat Hostiles . | . . . . . . . . . . . Follow-up Attacks 2 | . . . . . . . . . . 2 Damage Inflicted 4605 | 174 480 665 251 883 82 925 . 223 614 308 Guns 1945 | 174 142 206 . 168 82 925 . 223 25 . Cannons 735 | . 251 459 . . . . . . 25 . Explosions 404 | . 87 . 251 66 . . . . . . Melee 1469 | . . . . 649 . . . . 564 256 Ramming 52 | . . . . . . . . . . 52 Kinetic 1945 | 174 142 206 . 168 82 925 . 223 25 . Thermal 710 | . 251 459 . . . . . . . . Explosive 404 | . 87 . 251 66 . . . . . . Electromagnetic 25 | . . . . . . . . . 25 . Impact 649 | . . . . 649 . . . . . . Slashing 782 | . . . . . . . . . 564 218 Piercing 38 | . . . . . . . . . . 38 Highest Corruption 2 | . . . . 2 . 2 2 2 . 2 Average Corruption 1 | . . . . 1 . 1 2 2 . 2 Corruption Purged 1 | . . . . 1 . . . . . . Corruption Blocked . | . . . . . . . . . . . Effects 33 | . . . . 2 . 25 3 3 . . Message Errors 6 | . . . . . . 5 1 . . . Matter Fused 15 | . . . . 1 . 11 1 2 . . Heat Flow Errors 1 | . . . . . . 1 . . . . Energy Discharges 4 | . . . . . . 4 . . . . Data Loss (minor) 3 | . . . . . . 2 . 1 . . Data Loss (major) 2 | . . . . . . 1 1 . . . Misfires 2 | . . . . 1 . 1 . . . . Overload Shots . | . . . . . . . . . . . Overflow Damage 440 | . 2 . . 283 . . . . 155 . Projectiles 2 | . 2 . . . . . . . . . Explosions 7 | . . . . 7 . . . . . . Melee 431 | . . . . 276 . . . . 155 . Knockbacks 3 | . . . . 3 . . . . . . Impact 3 | . . . . 3 . . . . . . Kinetic . | . . . . . . . . . . . Secondary . | . . . . . . . . . . . Self-Inflicted Damage 128 | . 16 . . 92 . . . . . 20 Shots 3 | . 1 . . 2 . . . . . . Rammed 24 | . . . . . . . . . . 24 Targets Rammed 24 | . . . . . . . . . . 24 Kicked . | . . . . . . . . . . . Crushed . | . . . . . . . . . . . Highest Temperature 243 | . 174 2 5 . 3 243 . 45 52 . Average Temperature 39 | . 64 2 5 . 2 27 . 22 30 . Received Heat Transfer 1253 | . 60 165 90 117 67 334 . 342 78 . Siege Activations . | . . . . . . . . . . . Martial Activations . | . . . . . . . . . . . Shielding Activations . | . . . . . . . . . . . Robots Disrupted . | . . . . . . . . . . . Combat Hostiles . | . . . . . . . . . . . Robots Corrupted 3 | . . . . 3 . . . . . . Combat Hostiles 1 | . . . . 1 . . . . . . Parts Fried 13 | . . . . 13 . . . . . . Impact Corruptions 12 | . . . . 12 . . . . . . Robots Melted 1 | . . 1 . . . . . . . . Combat Hostiles 1 | . . 1 . . . . . . . . Parts Melted 2 | . . 2 . . . . . . . . Heat Transferred 1443 | . 518 925 . . . . . . . . Parts Sabotaged . | . . . . . . . . . . . Parts Stolen . | . . . . . . . . . . . Parts Stripped . | . . . . . . . . . . . Power Chain Reactions . | . . . . . . . . . . . Alert | -11 -10 -9 -9 -8 -7 -7 -7 -6 -6 -6 ------- Run | Yrd Mat Mat Sto Mat Fac Low Dat Pro Fac Was Maximum Alert Level 1 | . . 1 1 . . . . . . . Low Security (%) 96 | 100 100 83 91 100 100 . . . 100 100 Level 1 3 | . . 16 8 . . . . . . . Level 2 . | . . . . . . . . . . . Level 3 . | . . . . . . . . . . . Level 4 . | . . . . . . . . . . . Level 5 . | . . . . . . . . . . . High Security . | . . . . . . . . . . . Max Security . | . . . . . . . . . . . Peak Influence 254 | 5 116 225 254 107 46 . . . 20 . Initial 107 | . . 44 65 107 46 . . . 20 . Average 51 | . 13 161 78 57 11 . . . 2 . Influence Increases 1730 | 10 163 381 289 283 26 345 . 193 40 . Destroy 0b10 Robot/C 720 | . 100 260 60 40 . 220 . 40 . . Destroy 0b10 Robot/NC 110 | 10 5 5 . 35 20 5 . 5 25 . Destroy Leader 154 | . 12 40 30 22 . 30 . 20 . . Allied During Kill 8 | . . . . . . . . 8 . . Successful Hack 44 | . 11 15 6 6 6 . . . . . Disable Machine 60 | . 15 15 15 15 . . . . . . Destroy Structure 49 | . 5 1 28 15 . . . . . . Partial Spotted 45 | . . . 45 . . . . . . . Lose Combat Pursuer 540 | . 15 45 105 150 . 90 . 120 15 . Influence Decreases 1730 | 10 57 332 190 434 129 345 . 160 73 . Entered New Map 369 | . . 62 90 147 57 . . . 13 . Time Decay 1151 | 10 57 230 90 247 72 275 . 110 60 . Lost Part 190 | . . 40 10 40 . 70 . 30 . . Lost Ally 20 | . . . . . . . . 20 . . Squads Dispatched 9 | . 1 4 1 2 . . . . 1 . Investigation 2 | . . 2 . . . . . . . . Extermination . | . . . . . . . . . . . Reinforcement 7 | . 1 2 1 2 . . . . 1 . Assault . | . . . . . . . . . . . Garrison . | . . . . . . . . . . . Intercept . | . . . . . . . . . . . Searches Triggered . | . . . . . . . . . . . Construction Impeded . | . . . . . . . . . . . Haulers Reinforced . | . . . . . . . . . . . Active Scanning Responses . | . . . . . . . . . . . Cargo Convoy Interrupts . | . . . . . . . . . . . Stealth | -11 -10 -9 -9 -8 -7 -7 -7 -6 -6 -6 --------- Run | Yrd Mat Mat Sto Mat Fac Low Dat Pro Fac Was Distress Signals 8 | . 1 4 2 1 . . . . . . Communications Jammed . | . . . . . . . . . . . Distress Signals . | . . . . . . . . . . . Times Spotted 123 | . 9 34 11 31 1 17 . 12 3 5 Peak Tracking Total 10 | . 3 8 10 8 1 4 . 5 2 5 Tactical Retreats 19 | . 1 3 2 5 . 3 . 4 1 . Traps | -11 -10 -9 -9 -8 -7 -7 -7 -6 -6 -6 ------- Run | Yrd Mat Mat Sto Mat Fac Low Dat Pro Fac Was Traps Triggered 1 | . . . . . . . . . 1 . Indirectly . | . . . . . . . . . . . Trap Hack Attempts . | . . . . . . . . . . . Triggered . | . . . . . . . . . . . Disarmed . | . . . . . . . . . . . Reprogrammed . | . . . . . . . . . . . Reused . | . . . . . . . . . . . Traps Extracted . | . . . . . . . . . . . Installed . | . . . . . . . . . . . Triggered . | . . . . . . . . . . . Machines | -11 -10 -9 -9 -8 -7 -7 -7 -6 -6 -6 ---------- Run | Yrd Mat Mat Sto Mat Fac Low Dat Pro Fac Was Machines Disabled 6 | . 1 1 1 1 . . . 2 . . Max in Single Turn 1 | . 1 1 1 1 . . . . . . Machines Repaired . | . . . . . . . . . . . Machines Dismantled . | . . . . . . . . . . . Machines Sabotaged . | . . . . . . . . . . . Overloaded Fab Kills . | . . . . . . . . . . . Hacking | -11 -10 -9 -9 -8 -7 -7 -7 -6 -6 -6 --------- Run | Yrd Mat Mat Sto Mat Fac Low Dat Pro Fac Was Machines Accessed 16 | . 2 2 4 2 1 1 4 . . . Terminals 8 | . 2 2 3 1 . . . . . . Fabricators . | . . . . . . . . . . . Repair Stations 3 | . . . 1 1 1 . . . . . Recycling Units . | . . . . . . . . . . . Scanalyzers . | . . . . . . . . . . . Garrison Access . | . . . . . . . . . . . Total Hacks 62 | . 8 8 11 4 1 1 29 . . . Successful 50 | . 4 4 8 3 1 1 29 . . . Failed 12 | . 4 4 3 1 . . . . . . Catastrophic 1 | . 1 . . . . . . . . . Database Lockouts . | . . . . . . . . . . . Manual 25 | . 8 9 6 2 . . . . . . Terminals 24 | . 8 8 6 2 . . . . . . Fabricators . | . . . . . . . . . . . Repair Stations 8 | . . . 5 2 1 . . . . . Recycling Units . | . . . . . . . . . . . Scanalyzers . | . . . . . . . . . . . Garrison Access . | . . . . . . . . . . . Terminal Hacks 38 | . 2 2 3 1 . 1 29 . . . Record 11 | . . . . . . . 11 . . . Part Schematic 11 | . . . . . . . 11 . . . Robot Schematic 4 | . . . . . . . 4 . . . Robot Analysis 4 | . 2 2 . . . . . . . . Prototype ID Bank 3 | . . . . . . . 3 . . . Open Door 3 | . . . 2 . . 1 . . . . Zone Layout 2 | . . . 1 1 . . . . . . Fabricator Hacks . | . . . . . . . . . . . Repair Station Hacks 7 | . . . 4 2 1 . . . . . Scan Component 3 | . . . 2 1 . . . . . . Repair 3 | . . . 2 1 . . . . . . Refit 1 | . . . . . 1 . . . . . Recycling Unit Hacks . | . . . . . . . . . . . Scanalyzer . | . . . . . . . . . . . Garrison Access Hacks . | . . . . . . . . . . . Unauthorized Hacks 5 | . 2 2 1 . . . . . . . Terminals 5 | . 2 2 1 . . . . . . . Botnet 5 | . 2 2 1 . . . . . . . Fabricators . | . . . . . . . . . . . Repair Stations . | . . . . . . . . . . . Recycling Units . | . . . . . . . . . . . Scanalyzers . | . . . . . . . . . . . Garrison Access . | . . . . . . . . . . . Data Cores Recovered . | . . . . . . . . . . . Used . | . . . . . . . . . . . Hacking Detections 7 | . 2 2 2 1 . . . . . . Full Trace Events 4 | . 2 2 . . . . . . . . Feedback Events . | . . . . . . . . . . . Feedback Blocked . | . . . . . . . . . . . Robot Schematics Acquired 4 | . . . . . . . 4 . . . Robots Built . | . . . . . . . . . . . Authchips . | . . . . . . . . . . . Time . | . . . . . . . . . . . Total Robot Build Rating . | . . . . . . . . . . . Part Schematics Acquired 11 | . . . . . . . 11 . . . Parts Built . | . . . . . . . . . . . Authchips . | . . . . . . . . . . . Time . | . . . . . . . . . . . Total Part Build Rating . | . . . . . . . . . . . Parts Repaired 3 | . . . 2 1 . . . . . . Time 102 | . . . 64 38 . . . . . . Parts Recycled . | . . . . . . . . . . . Recycled Matter . | . . . . . . . . . . . Retrieved Matter . | . . . . . . . . . . . Retrieved Components . | . . . . . . . . . . . Parts Scanalyzed . | . . . . . . . . . . . Part Schematics Acquired . | . . . . . . . . . . . Parts Damaged . | . . . . . . . . . . . Bothacking | -11 -10 -9 -9 -8 -7 -7 -7 -6 -6 -6 ------------ Run | Yrd Mat Mat Sto Mat Fac Low Dat Pro Fac Was Used RIF Installer . | . . . . . . . . . . . Robots Hacked . | . . . . . . . . . . . Non-combat . | . . . . . . . . . . . Combat . | . . . . . . . . . . . Robot Hacks Applied . | . . . . . . . . . . . Relay Couplers Released . | . . . . . . . . . . . Fabnet Peak Effective % . | . . . . . . . . . . . Robots Rewired . | . . . . . . . . . . . Allies Hacked . | . . . . . . . . . . . Hacks Repelled . | . . . . . . . . . . . Allies | -11 -10 -9 -9 -8 -7 -7 -7 -6 -6 -6 -------- Run | Yrd Mat Mat Sto Mat Fac Low Dat Pro Fac Was Total Allies 2 | . . . . . . . . 1 . 1 Largest Group 1 | . . . . . . . . 1 . 1 Highest-Rated Group 96 | . . . . . . . . 96 . 31 Highest-Rated Ally 96 | . . . . . . . . 96 . 31 Total Orders . | . . . . . . . . . . . Ally Attacks 20 | . . . . . . . . 12 . 8 Total Damage 728 | . . . . . . . . 598 . 130 Kills 1 | . . . . . . . . 1 . . Allies Corrupted . | . . . . . . . . . . . Allies Melted . | . . . . . . . . . . . Intel | -11 -10 -9 -9 -8 -7 -7 -7 -6 -6 -6 ------- Run | Yrd Mat Mat Sto Mat Fac Low Dat Pro Fac Was Active Infowar (turns) 1372 | 27 368 488 165 323 . . . . 1 . Traps 1 | . . . . . . . . . 1 . Seismic 1371 | 27 368 488 165 323 . . . . . . Robot Analysis Total 4 | . 2 2 . . . . . . . . Derelict Logs Recovered 3 | . . . . . . 1 . 2 . . Drone Launches . | . . . . . . . . . . . Drone Recoveries . | . . . . . . . . . . . Exploration | -11 -10 -9 -9 -8 -7 -7 -7 -6 -6 -6 ------------- Run | Yrd Mat Mat Sto Mat Fac Low Dat Pro Fac Was Turns Passed 5450 | 114 368 488 191 545 317 2382 192 264 504 85 Spaces Moved 2879 | 53 284 438 209 485 193 432 90 441 220 34 Core 925 | 1 . . . 277 48 105 . 436 58 . Treads . | . . . . . . . . . . . Legs . | . . . . . . . . . . . Wheels 1247 | 52 284 148 . . 145 327 90 5 162 34 Hover . | . . . . . . . . . . . Flight 707 | . . 290 209 208 . . . . . . Fastest Speed 27 | 50 90 32 32 27 50 150 215 50 50 86 Average Speed 142 | 89 90 60 32 49 148 528 215 55 83 86 Slowest Speed 1650 | 90 90 200 35 117 190 1650 215 1450 100 100 Overloaded Moves . | . . . . . . . . . . . Propulsion Burnouts . | . . . . . . . . . . . Robots Hopped 1 | . . 1 . . . . . . . . Potential Cave-ins . | . . . . . . . . . . . Cave-ins Triggered 1 | . . . . 1 . . . . . . Exploration Rate (%) 41 | 5 44 40 54 56 6 64 75 75 7 30 Regions Visited 10 Branch Regions 4 Pre-discovered Areas 2 | . . . . . . 1 1 . . . Known Exits Taken 2 | . . . . . . 1 1 . . . Unknown Exits Taken 7 | 1 1 1 1 1 1 . . 1 . . Scrap Searched 7 | . . . . . . 7 . . . . Spaces Dug . | . . . . . . . . . . . Terrain Destroyed 47 | . 4 . 30 13 . . . . . . Melee . | . . . . . . . . . . . Projectile . | . . . . . . . . . . . AOE 47 | . 4 . 30 13 . . . . . . Terrain Rammed . | . . . . . . . . . . . Walls Destroyed . | . . . . . . . . . . . Machines Disabled . | . . . . . . . . . . . Actions | -11 -10 -9 -9 -8 -7 -7 -7 -6 -6 -6 --------- Run | Yrd Mat Mat Sto Mat Fac Low Dat Pro Fac Was Total 3944 | 92 365 602 322 738 214 479 89 451 522 70 Wait 769 | 20 57 106 102 206 . 2 . . 275 1 Move 2868 | 52 283 435 208 484 192 431 89 440 220 34 Hop 1 | . . 1 . . . . . . . . Pick Up 31 | . 4 7 . 4 6 8 . . 2 . Fast Attach 44 | 7 . 7 3 7 5 4 . 1 10 . Attach 27 | . 2 5 . 5 5 3 . 3 4 . Detach 4 | . 2 1 . . . . . . 1 . Swap 4 | . 1 . . . . 3 . . . . Drop 20 | . . 9 1 4 2 2 . . 2 . Fire 116 | 13 16 31 8 10 4 26 . 7 1 . Melee 36 | . . . . 18 . . . . 7 11 Ram 24 | . . . . . . . . . . 24 Kick . | . . . . . . . . . . . Crush . | . . . . . . . . . . . Escape Stasis . | . . . . . . . . . . . Rewire . | . . . . . . . . . . . Trap . | . . . . . . . . . . . Miscellaneous . | . . . . . . . . . . . Route ------- -11/Scrapyard -10/Materials -9/Materials -9/Storage -8/Materials -7/Factory -7/Lower Caves -7/Data Miner -6/Proximity Caves -6/Factory -6/Waste History --------- Turn | Location | Event 33 | -11/Scrapyard | Discovered new exit (range 16) 115 | -11/Scrapyard | Entered Materials 303 | -10/Materials | Build established: Mutant 480 | -10/Materials | Discovered new exit (range 3) 483 | -10/Materials | Entered another Materials area 483 | -9/Materials | Evolved 2 slots: Utility x2 609 | -9/Materials | Destroyed 9 combat bots 967 | -9/Materials | Discovered new exit (range 8) 971 | -9/Materials | Entered Storage 1015 | -9/Storage | Repaired Cesium-ion Thruster 1042 | -9/Storage | Repaired Seismic Detector 1158 | -9/Storage | Discovered new exit (range 9) 1162 | -9/Storage | Entered Materials 1162 | -8/Materials | Evolved 2 slots: Propulsion x2 1259 | -8/Materials | Crushed by falling debris 1523 | -8/Materials | Released all parts (9) 1575 | -8/Materials | Core integrity fell below 50% 1649 | -8/Materials | Repaired Lgt. Nuclear Core 1681 | -8/Materials | Core integrity fell below 20% 1702 | -8/Materials | Discovered new exit (range 11) 1707 | -8/Materials | Entered Factory 1707 | -7/Factory | Evolved 2 slots: Utility x2 1996 | -7/Factory | Discovered new exit (range 15) 2024 | -7/Factory | Entered Lower Caves 2283 | -7/Lower Caves | Attracted the attention of an 0b10 checkpoint 2608 | -7/Lower Caves | Lost 5 parts (1p3n1u) 4381 | -7/Lower Caves | A Derelict revealed a hidden shortcut to meet someone special 4400 | -7/Lower Caves | Identified exit to Data Miner 4406 | -7/Lower Caves | Entered Data Miner 4406 | -7/Data Miner | Discovered new exit (range 6) 4447 | -7/Data Miner | Met Data Miner 4516 | -7/Data Miner | Acquired the access code to Warlord's prototype stash 4516 | -7/Data Miner | Learned location of Section 7 (-2) 4548 | -7/Data Miner | Received God Mode back door access code from Data Miner 4596 | -7/Data Miner | Identified exit to Proximity Caves 4598 | -7/Data Miner | Entered Proximity Caves 4641 | -6/Proximity Caves | Released all parts (5) 4643 | -6/Proximity Caves | Learned Factory stockpile data 4662 | -6/Proximity Caves | Lost 5 parts (1p1n1u2w) 4708 | -6/Proximity Caves | Attracted the attention of an 0b10 checkpoint 4710 | -6/Proximity Caves | Core integrity fell below 50% 4773 | -6/Proximity Caves | Spotted B-75 Beast 4855 | -6/Proximity Caves | Discovered new exit (range 7) 4862 | -6/Proximity Caves | Entered Factory 4862 | -6/Factory | Evolved 2 slots: Weapon x2 5366 | -6/Factory | Sucked down chute 5366 | -6/Factory | Entered Waste 5367 | -6/Waste | Met a frightened Derelict 5373 | -6/Waste | Spotted C-40 Crusher 5378 | -6/Waste | Spotted C-40 Crusher 5380 | -6/Waste | Spotted C-40 Crusher 5396 | -6/Waste | Crushed by Compactor (0 parts destroyed, 1 dropped) 5396 | -6/Waste | Spotted C-40 Crusher 5399 | -6/Waste | Crushed by Compactor (1 part destroyed, 1 dropped) 5415 | -6/Waste | Destroyed C-40 Crusher 5419 | -6/Waste | Crushed by Compactor (0 parts destroyed, 1 dropped) 5425 | -6/Waste | Crushed by Compactor (0 parts destroyed, 1 dropped) 5426 | -6/Waste | Spotted C-40 Crusher 5433 | -6/Waste | Crushed by Compactor (0 parts destroyed, 1 dropped) 5434 | -6/Waste | Crushed by Compactor (1 part destroyed, 1 dropped) 5440 | -6/Waste | Core integrity fell below 50% 5447 | -6/Waste | Core integrity fell below 20% 5451 | -6/Waste | Destroyed by C-40 Crusher with Compactor Last Messages --------------- 05437_ Slammed into C-40 Crusher. 05439_ 8 Matter crushed. 05440_ 5 Matter crushed. 05440_ Slammed into C-40 Crusher. 05442_ 7 Matter crushed. 05443_ 5 Matter crushed. 05443_ Slammed into C-40 Crusher. 05445_ Destabilizing: System corrupted (+2). 05445_ 8 Matter crushed. 05446_ 4 Matter crushed. 05446_ Slammed into C-40 Crusher. 05448_ 2 Matter crushed. 05448_ 5 Matter crushed. 05449_ 3 Matter crushed. 05449_ Slammed into C-40 Crusher. 05449_ Destabilizing: Core damaged (-17). 05450_ Slammed into C-40 Crusher. 05451_ Destabilizing: System corrupted (+2). 05451_ 5 Matter crushed. 05451_ 2 Matter crushed. Map ----- +----------------------------------------------------+ | ?????????????????????????????????????????????????? | | ?????????????????????????????????????????????????? | | ?????????????????????????????????????????????????? | | ?????????????????????????????????????????????????? | | ?????????????????????????????????????????????????? | | ?????????????????????????????????????????????????? | | ?????????????????????????????????????????????????? | | ?????????????????????????????????????????????????? | | ?????????????????????????????????????????????????? | | ?????????????????????????????????????????????????? | | ?????????????????????????????????????????????????? | | ?????????????????????????????????????????????????? | | ?????????????????????????????????????????????????? | | ?????????????????????????????????????????????????? | | ?????????????????????????????????????????????????? | | ?????????????????????????????????????????????????? | | ?????????????????????????????????????????????????? | | ?????????????????????????????????????????????????? | | ?????????????????????????????????????????????????? | | ?????????????????????????????????????????????????? | | ?????????????????????????????????????????????????? | | ?????????????????????????????????????????????????? | | ?????????######??????######??????????????????????? | | ?????????# #??????# !!*#??????????????????????? | | #######??# #??????# CC*#??????????????????????? | | #??# #??????# CC@#??????????????????????? | | #??# #??????#CCCC#??????????????????????? | | #### ########CCCC#######????????????????? | | ! CC !????????????? | | = CC ???????????? | | ????????????? | | ????????????? | | #### =######## ######## ?????????????? | | #??# #??????# #????????? ????????????? | | #??# #??????# #??????????????????????? | | #######??# #??????# #??????????????????????? | | ?????????# #??????# #??????????????????????? | | ????????? #??????# ??????????????????????? | | ???????? #??????# ?????????????????????? | | ???????# #??????# ????????????????????? | | ???????# #??????? ???????????????????? | | ???????### #??????? ###????????????????????? | | ?????????#! #??????? ???????????????????????? | | ?????????# #???????? ?????????????????????????? | | ?????????# #??????????????????????????????????? | | ?????????? ???????????????????????????????????? | | ?????????????????????????????????????????????????? | | ?????????????????????????????????????????????????? | | ?????????????????????????????????????????????????? | | ?????????????????????????????????????????????????? | +----------------------------------------------------+ Best States ------------- Heat Dissipation 48 Energy Generation 14 Energy Capacity 250 Matter Stores 300 Matter Capacity 300 Sight Range 16 Terrain Scan Density 10 Armor Coverage 300 Resistance: EM 25 Phase Shifting 5 Evasion (%) 64 Targeting Accuracy 8 Melee Accuracy 13 Target Analysis 6 Armor Integrity Analysis 30 Item Schematics ----------------- Imp. Weapon Cycler | -7/Data Miner | Free Graphene Brace | -7/Data Miner | Free Adv. Hacking Suite | -7/Data Miner | Free Wave Gun | -7/Data Miner | Free Imp. Recalibrator | -7/Data Miner | Free Gyrokinetic Inverter | -7/Data Miner | Free Cld. Plasma Cannon | -7/Data Miner | Free Exp. Propulsion Shielding | -7/Data Miner | Free Cld. Cesium-ion Thruster | -7/Data Miner | Free Combat Drone Bay | -7/Data Miner | Free Lgt. Regenerative Plating | -7/Data Miner | Free Robot Schematics ------------------ M-14 Sweeper | -7/Data Miner | Free X-67 Chaingunner | -7/Data Miner | Free R-10 Processor | -7/Data Miner | Free G-50 Soldier | -7/Data Miner | Free Fabricated ------------ Nothing Repaired ---------- Cesium-ion Thruster | 60% | -9/Storage Seismic Detector | 15% | -9/Storage Lgt. Nuclear Core | 54% | -8/Materials Alien Tech Used ----------------- None Achievements -------------- None Challenges ------------ None Game ------ Seed BladeCobblerShifter Manual? 0 Play Time 00:47:26 Cumulative 69.4 hours Start 2025.08.24 @ 14:09:27 End 2025.08.24 @ 15:01:43 Sessions 1 Manual Loads 0 Difficulty Rogue Special Mode None Game No. 116 Rogue 116 Adventurer 0 Explorer 0 Win Type - Total 0 Types 0/0/0/0/0/0/0/0/0/0 Lore% 35 Gallery% 38 Achievement% 35 Wizard Run 0 Options --------- Layout 0 ASCII 0 Keyboard 0 Movement Mouse Keybinds 0 Fullscreen 2 Font 18/SmallcapsGlow Map View 38x25 Zoom Use 98% Tactical HUD 1 Map Filters NONE Filters NONE Steam 1 RUN: a01a2029-df63-4610-8326-5f61a727ee5e